fUST/lending_fUST_20251018
["ID","MTS","AMOUNT","RATE_DAILY","PERIOD"]
[391748866,1760772639276,-500.0,0.00024446,2]
[391748867,1760772639286,-500.0,0.00024446,2]
[391748868,1760772639295,-379.19271472,0.00024446,2]
[391748872,1760772639796,-120.80728528,0.00024446,2]
[391748873,1760772639805,-500.0,0.00024446,2]
[391748874,1760772639815,-129.19271472,0.00024446,2]
[391748875,1760772639827,-370.80728528,0.00024446,2]
[391748876,1760772639836,-500.0,0.00024446,2]
[391748877,1760772639846,-500.0,0.00024446,2]
[391748878,1760772639855,-500.0,0.00024446,2]
[391748879,1760772639865,-500.0,0.00024446,2]
[391748880,1760772639874,-500.0,0.00024446,2]
[391748881,1760772639883,-500.0,0.00024446,2]
[391748882,1760772639893,-500.0,0.00024446,2]
[391748883,1760772639902,-200.0,0.00024447,10]
[391748884,1760772639912,-200.0,0.00024447,10]
[391748886,1760772639921,-200.0,0.00024447,10]
[391748887,1760772639932,-200.0,0.00024447,10]
[391748889,1760772639941,-200.0,0.00024447,10]
[391748890,1760772639950,-200.0,0.00024447,10]
[391748891,1760772639959,-200.0,0.00024447,10]
[391748892,1760772639968,-200.0,0.00024447,10]
[391748893,1760772639977,-271.818534,0.00024447,10]
[391748894,1760772639986,-285380.83076316,0.00024447,2]
[391748935,1760772640523,-16703.26482744,0.00024447,2]
[391749196,1760772643117,-638.31663432,0.00024447,2]
[391749572,1760772646885,-2701.12803373,0.00024447,2]
[391749574,1760772646898,-1896.01578638,0.00024447,2]
[391749576,1760772646910,-5312.57475037,0.00024447,2]
[391749578,1760772646922,-11028.09844254,0.00024447,2]
[391749580,1760772646935,-5363.5,0.00024447,2]
[391749929,1760772650603,1369.81585056,0.00024142,2]
[391750352,1760772659393,418.2827372,0.00024142,2]
[391750353,1760772668719,1099.23368101,0.00024142,2]
[391750354,1760772681044,200.0,0.0003411,120]
[391750356,1760772695086,319.0,0.00024127,2]
[391750357,1760772703374,844.0,0.00023678,2]
[391750360,1760772847374,202.42641345,0.00023424,2]
[391750361,1760772849112,364.36754421,0.00023424,2]
[391750362,1760772851198,647.76452303,0.00023424,2]
[391750364,1760772859131,1062.482506,0.00013699,2]
[391750365,1760772859333,1062.482506,0.00020187,2]
[391750366,1760772875646,417.15472785,0.000241,2]
[391750367,1760772892612,-884.37768497,0.00024345,2]
[391750368,1760772895686,386.754415,0.00023446,2]
[391750369,1760772902047,482.0,0.00023784,2]
[391750370,1760773004251,156.00477826,0.00023424,2]
[391750371,1760773080090,186.82,0.00015105,3]
[391750372,1760773080367,186.82,0.00015105,3]
[391750373,1760773107802,168.0,0.00023798,2]
[391750375,1760773192783,1000.0,0.00023442,30]
[391750376,1760773204887,185.73522897,0.00023325,10]
[391750377,1760773205534,-168.0,0.00024206,2]
[391750378,1760773212710,-773.83047434,0.00024346,2]
[391750380,1760773306909,232.3180349,0.00023224,2]
[391750381,1760773308356,204.12336471,0.00024134,2]
[391750382,1760773309156,418.17246281,0.00023224,2]
[391750383,1760773311153,742.67429396,0.00023224,2]
[391750384,1760773390969,-677.10166503,0.0002434,2]
[391750385,1760773455791,334.89075888,0.00023224,2]
[391750386,1760773611247,328.51996856,0.00023224,2]
[391750387,1760773623552,-592.46395691,0.00024338,2]
[391750388,1760773730269,-800.0,0.00024302,2]
[391750389,1760773759451,298.98908862,0.00023224,2]
[391750411,1760773832439,-596.84619166,0.000244,5]
[391750413,1760773832449,-160.0,0.00024426,2]
[391750415,1760773832458,-612.9696589,0.00024426,2]
[391750417,1760773832470,-210.80942962,0.00024426,2]
[391750419,1760773832480,-186.18268924,0.00024426,2]
[391750422,1760773832489,-160.55569787,0.00024435,2]
[391750424,1760773832503,-139.44430213,0.00024435,2]
[391750426,1760773832512,-1200.0,0.00024436,2]
[391750428,1760773832521,-1200.0,0.00024436,2]
[391750430,1760773832530,-213.33727948,0.00024436,2]
[391750432,1760773832539,-525.17602229,0.00024436,2]
[391750434,1760773832548,-12540.0423963,0.00024437,2]
[391750456,1760773838339,-502.81412001,0.00024436,2]
[391750457,1760773838349,-500.0,0.00024436,2]
[391750458,1760773838359,-500.0,0.00024436,2]
[391750459,1760773838369,-500.0,0.00024436,2]
[391750460,1760773838379,-500.0,0.00024436,2]
[391750461,1760773838389,-615.45129681,0.00024436,2]
[391750462,1760773838399,-500.0,0.00024436,2]
[391750463,1760773838409,-304.6738453,0.00024436,2]
[391750464,1760773838419,-500.0,0.00024436,2]
[391750465,1760773838429,-500.0,0.00024436,2]
[391750466,1760773838438,-500.0,0.00024436,2]
[391750467,1760773838447,-500.0,0.00024436,2]
[391750468,1760773838457,-500.0,0.00024436,2]
[391750469,1760773838467,-500.0,0.00024436,2]
[391750470,1760773838476,-500.0,0.00024436,2]
[391750471,1760773838486,-500.0,0.00024436,2]
[391750472,1760773838496,-500.0,0.00024436,2]
[391750473,1760773838505,-500.0,0.00024436,2]
[391750474,1760773838515,-500.0,0.00024436,2]
[391750475,1760773838525,-500.0,0.00024436,2]
[391750476,1760773838535,-500.0,0.00024436,2]
[391750477,1760773838544,-500.0,0.00024436,2]
[391750478,1760773838554,-500.0,0.00024436,2]
[391750479,1760773838564,-500.0,0.00024436,2]
[391750480,1760773838574,-500.0,0.00024436,2]
[391750481,1760773838583,-500.0,0.00024436,2]
[391750482,1760773838593,-500.0,0.00024436,2]
[391750483,1760773838603,-500.0,0.00024436,2]
[391750484,1760773838612,-500.0,0.00024436,2]
[391750485,1760773838622,-439.2749866,0.00024436,2]
[391750486,1760773838634,-500.0,0.00024436,2]
[391750487,1760773838643,-500.0,0.00024436,2]
[391750488,1760773838653,-500.0,0.00024436,2]
[391750489,1760773838663,-500.0,0.00024436,2]
[391750490,1760773838673,-500.0,0.00024436,2]
[391750491,1760773838683,-500.0,0.00024436,2]
[391750492,1760773838693,-500.0,0.00024436,2]
[391750493,1760773838704,-500.0,0.00024436,2]
[391750494,1760773838714,-500.0,0.00024436,2]
[391750495,1760773838724,-171.41508353,0.00024436,2]
[391750496,1760773838734,-531.07515664,0.00024436,2]
[391750497,1760773838891,-500.0,0.00024436,2]
[391750498,1760773838911,-500.0,0.00024436,2]
[391750499,1760773838921,-500.0,0.00024436,2]
[391750500,1760773838930,-500.0,0.00024436,2]
[391750501,1760773838940,-500.0,0.00024436,2]
[391750502,1760773838949,-500.0,0.00024436,2]
[391750503,1760773838959,-500.0,0.00024436,2]
[391750504,1760773838969,-500.0,0.00024436,2]
[391750505,1760773838979,-360.43644812,0.00024436,2]
[391750506,1760773838989,-500.0,0.00024436,2]
[391750507,1760773838998,-500.0,0.00024436,2]
[391750508,1760773839009,-500.0,0.00024436,2]
[391750509,1760773839019,-500.0,0.00024436,2]
[391750510,1760773839029,-500.0,0.00024436,2]
[391750511,1760773839039,-500.0,0.00024436,2]
[391750512,1760773839049,-500.0,0.00024436,2]
[391750513,1760773839059,-500.0,0.00024436,2]
[391750514,1760773839069,-500.0,0.00024436,2]
[391750515,1760773839079,-500.0,0.00024436,2]
[391750516,1760773839088,-500.0,0.00024436,2]
[391750517,1760773839098,-500.0,0.00024436,2]
[391750518,1760773839107,-500.0,0.00024436,2]
[391750519,1760773839117,-500.0,0.00024436,2]
[391750520,1760773839128,-339.40513583,0.00024436,2]
[391750521,1760773839138,-500.0,0.00024436,2]
[391750522,1760773839147,-500.0,0.00024436,2]
[391750523,1760773839157,-500.0,0.00024436,2]
[391750524,1760773839167,-500.0,0.00024436,2]
[391750525,1760773839177,-500.0,0.00024436,2]
[391750526,1760773839186,-500.0,0.00024436,2]
[391750527,1760773839196,-500.0,0.00024436,2]
[391750528,1760773839206,-500.0,0.00024436,2]
[391750529,1760773839216,-500.0,0.00024436,2]
[391750530,1760773839226,-500.0,0.00024436,2]
[391750531,1760773839235,-500.0,0.00024436,2]
[391750532,1760773839244,-500.0,0.00024436,2]
[391750533,1760773839256,-246.46430702,0.00024436,2]
[391750534,1760773839269,-500.0,0.00024436,2]
[391750535,1760773839279,-500.0,0.00024436,2]
[391750536,1760773839289,-500.0,0.00024436,2]
[391750537,1760773839299,-500.0,0.00024436,2]
[391750538,1760773839310,-500.0,0.00024436,2]
[391750539,1760773839320,-500.0,0.00024436,2]
[391750540,1760773839330,-500.0,0.00024436,2]
[391750541,1760773839340,-500.0,0.00024436,2]
[391750542,1760773839350,-500.0,0.00024436,2]
[391750543,1760773839361,-500.0,0.00024436,2]
[391750544,1760773839371,-500.0,0.00024436,2]
[391750545,1760773839381,-500.0,0.00024436,2]
[391750546,1760773839391,-500.0,0.00024436,2]
[391750547,1760773839401,-500.0,0.00024436,2]
[391750548,1760773839410,-500.0,0.00024436,2]
[391750549,1760773839420,-500.0,0.00024436,2]
[391750550,1760773839429,-385.87400923,0.00024436,2]
[391750551,1760773839439,-500.0,0.00024436,2]
[391750552,1760773839450,-500.0,0.00024436,2]
[391750553,1760773839460,-500.0,0.00024436,2]
[391750554,1760773839470,-37459.9576037,0.00024437,2]
[391750555,1760773839479,-1722.92,0.00024437,3]
[391750556,1760773839489,-861.46,0.00024437,3]
[391750557,1760773839499,-430.73,0.00024437,3]
[391750558,1760773839514,-215.37,0.00024437,3]
[391750559,1760773839523,-516.38928526,0.00024438,2]
[391750560,1760773839534,-500.0,0.00024438,2]
[391750561,1760773839544,-500.0,0.00024438,2]
[391750562,1760773839554,-544.0,0.00024439,2]
[391750563,1760773839564,-151.0,0.00024439,2]
[391750564,1760773839574,-500.0,0.00024439,2]
[391750565,1760773839584,-152.47409756,0.00024439,2]
[391750566,1760773839593,-245.5221496,0.00024439,2]
[391750567,1760773839603,-151.75428275,0.00024439,2]
[391750568,1760773839613,-151.0,0.00024439,2]
[391750569,1760773839623,-500.0,0.00024439,2]
[391750570,1760773839633,-500.0,0.00024439,2]
[391750571,1760773839642,-500.0,0.0002444,2]
[391750572,1760773839652,-238.901,0.00024441,7]
[391750573,1760773839662,-184.03626781,0.00024441,7]
[391750574,1760773839672,-500.0,0.00024442,2]
[391750575,1760773839682,-194.42731026,0.00024446,2]
[391750576,1760773839691,-349.6191893,0.00024446,2]
[391750577,1760773839702,-369.62356879,0.00024446,2]
[391750578,1760773839711,-306.19002989,0.00024446,2]
[391750579,1760773839721,-665.32242383,0.00024446,2]
[391750580,1760773839730,-1182.79542014,0.00024446,2]
[391750581,1760773839740,-409.73116618,0.00024446,2]
[391750582,1760773839750,-20272.4883004,0.00024446,2]
[391750583,1760773839762,-393.5269997,0.00024447,2]
[391750584,1760773839772,-166.0,0.00024447,3]
[391750585,1760773839782,-166.0,0.00024447,3]
[391750586,1760773839793,-151.0,0.00024447,7]
[391750587,1760773839802,-169.663694,0.00024447,7]
[391750588,1760773839812,-151.0,0.00024447,7]
[391750589,1760773839821,-151.0,0.00024447,7]
[391750590,1760773839831,-432.91239,0.00024447,7]
[391750591,1760773839841,-432.91239,0.00024447,7]
[391750592,1760773839852,-337.846764,0.00024447,7]
[391750593,1760773839861,-432.91239,0.00024447,7]
[391750594,1760773839871,-337.846764,0.00024447,7]
[391750595,1760773839881,-168.539131,0.00024447,7]
[391750596,1760773839890,-432.91239,0.00024447,7]
[391750597,1760773839900,-337.846764,0.00024447,7]
[391750598,1760773839910,-337.846764,0.00024447,7]
[391750599,1760773839920,-151.0,0.00024447,7]
[391750600,1760773839929,-151.0,0.00024447,7]
[391750601,1760773839940,-151.0,0.00024447,7]
[391750602,1760773839949,-151.0,0.00024447,7]
[391750603,1760773839959,-151.0,0.00024447,7]
[391750604,1760773839969,-40976.27076206,0.00024447,2]
[391750605,1760773839979,-332.0,0.00024457,3]
[391750606,1760773839988,-179.94,0.00024457,3]
[391750607,1760773839997,-179.94,0.00024457,3]
[391750608,1760773840009,-179.93,0.00024457,3]
[391750609,1760773840018,-430.97222601,0.00024457,2]
[391750610,1760773840028,-261.0,0.00024482,2]
[391750611,1760773840040,-544.0,0.00024494,2]
[391750612,1760773840049,-153.05797408,0.00024494,2]
[391750613,1760773840059,-500.0,0.00024494,2]
[391750614,1760773840069,-199.90009523,0.00024494,2]
[391750615,1760773840079,-500.0,0.00024494,2]
[391750616,1760773840088,-500.0,0.00024494,2]
[391750617,1760773840097,-1000.0,0.00024534,2]
[391750618,1760773840107,-1000.0,0.00024534,2]
[391750619,1760773840117,-1000.0,0.00024534,2]
[391750621,1760773840127,-1000.0,0.00024534,2]
[391750623,1760773840137,-1000.0,0.00024534,2]
[391750624,1760773840146,-1000.0,0.00024534,2]
[391750625,1760773840156,-1000.0,0.00024534,2]
[391750626,1760773840165,-1000.0,0.00024534,2]
[391750627,1760773840175,-1000.0,0.00024534,2]
[391750628,1760773840184,-350.9252,0.00024534,2]
[391750630,1760773840194,-500.0,0.00024542,2]
[391750631,1760773840203,-916.56,0.00024542,2]
[391750633,1760773840213,-916.56,0.00024542,2]
[391750635,1760773840223,-588.23134462,0.00024543,2]
[391750636,1760773840233,-916.56,0.00024543,2]
[391750637,1760773840243,-916.56,0.00024543,2]
[391750638,1760773840253,-916.56,0.00024543,2]
[391750639,1760773840266,-916.56,0.00024546,2]
[391750641,1760773840275,-646.12,0.00024546,3]
[391750642,1760773840285,-544.0,0.00024549,2]
[391750643,1760773840294,-500.0,0.00024549,2]
[391750644,1760773840305,-500.0,0.00024549,2]
[391750645,1760773840314,-500.0,0.00024549,2]
[391750646,1760773840324,-151.0,0.0002455,7]
[391750648,1760773840334,-151.0,0.0002455,7]
[391750650,1760773840344,-151.0,0.0002455,7]
[391750651,1760773840354,-430.97222598,0.00024551,2]
[391750652,1760773840363,-151.0,0.00024556,7]
[391750653,1760773840372,-500.0,0.00024556,7]
[391750654,1760773840381,-151.0,0.00024556,7]
[391750656,1760773840390,-151.0,0.00024556,7]
[391750658,1760773840400,-151.0,0.00024556,7]
[391750660,1760773840409,-151.0,0.00024556,7]
[391750662,1760773840418,-500.0,0.00024556,7]
[391750664,1760773840427,-500.0,0.00024556,7]
[391750666,1760773840437,-500.0,0.00024556,7]
[391750668,1760773840446,-500.0,0.00024556,7]
[391750670,1760773840455,-151.0,0.00024556,7]
[391750672,1760773840464,-151.0,0.00024556,7]
[391750674,1760773840474,-151.0,0.00024556,7]
[391750676,1760773840482,-151.0,0.00024556,7]
[391750678,1760773840492,-151.0,0.00024556,7]
[391750680,1760773840501,-151.0,0.00024556,7]
[391750681,1760773840510,-151.0,0.00024556,7]
[391750683,1760773840519,-151.0,0.00024556,7]
[391750686,1760773840529,-916.56,0.00024556,2]
[391750688,1760773840539,-916.56,0.00024556,2]
[391750689,1760773840549,-916.56,0.00024556,2]
[391750691,1760773840559,-916.56,0.00024556,2]
[391750693,1760773840568,-916.56,0.00024556,2]
[391750695,1760773840578,-916.56,0.00024556,2]
[391750697,1760773840587,-916.56,0.00024556,2]
[391750699,1760773840597,-916.56,0.00024556,2]
[391750701,1760773840607,-916.56,0.00024556,2]
[391750703,1760773840617,-150.0,0.00024556,2]
[391750705,1760773840626,-151.0,0.00024556,7]
[391750707,1760773840636,-151.0,0.00024556,7]
[391750709,1760773840646,-151.0,0.00024556,7]
[391750711,1760773840657,-151.0,0.00024556,7]
[391750713,1760773840666,-151.0,0.00024556,7]
[391750715,1760773840676,-151.0,0.00024556,7]
[391750717,1760773840685,-154.866933,0.00024556,7]
[391750719,1760773840695,-151.0,0.00024556,7]
[391750721,1760773840704,-155.152912,0.00024556,7]
[391750723,1760773840714,-20333.9574018,0.00024557,3]
[391750745,1760773840918,-8009.60000016,0.00024557,3]
[391750747,1760773840930,-775.33348597,0.00024557,3]
[391750999,1760773843521,-115.58886416,0.00024557,3]
[391751001,1760773843531,-151.0,0.00024557,7]
[391751003,1760773843540,-54.97803544,0.00024557,7]
[391751145,1760773926722,-189.25544158,0.000244,5]
[391751146,1760773926763,-300.0,0.00024435,2]
[391751147,1760773926806,-500.0,0.00024436,2]
[391751148,1760773926850,-500.0,0.00024436,2]
[391751149,1760773926894,-500.0,0.00024436,2]
[391751150,1760773926936,-500.0,0.00024436,2]
[391751151,1760773926979,-250.0,0.00024436,2]
[391751152,1760773927022,-500.0,0.00024436,2]
[391751153,1760773927065,-500.0,0.00024436,2]
[391751154,1760773927108,-500.0,0.00024436,2]
[391751155,1760773927150,-500.0,0.00024436,2]
[391751156,1760773927192,-21.49911684,0.00024436,2]
[391751157,1760773929569,-478.50088316,0.00024436,2]
[391751158,1760773929616,-500.0,0.00024436,2]
[391751159,1760773929665,-500.0,0.00024436,2]
[391751160,1760773929719,-500.0,0.00024436,2]
[391751161,1760773929773,-500.0,0.00024436,2]
[391751162,1760773929827,-500.0,0.00024436,2]
[391751163,1760773929884,-500.0,0.00024436,2]
[391751164,1760773929935,-500.0,0.00024436,2]
[391751165,1760773929985,-500.0,0.00024436,2]
[391751166,1760773930035,-500.0,0.00024436,2]
[391751167,1760773932598,-500.0,0.00024436,2]
[391751168,1760773932639,-500.0,0.00024436,2]
[391751169,1760773932682,-500.0,0.00024436,2]
[391751170,1760773932725,-500.0,0.00024436,2]
[391751171,1760773932767,-500.0,0.00024436,2]
[391751172,1760773932809,-500.0,0.00024436,2]
[391751173,1760773932850,-500.0,0.00024436,2]
[391751174,1760773932891,-500.0,0.00024436,2]
[391751175,1760773932932,-500.0,0.00024436,2]
[391751176,1760773932973,-500.0,0.00024436,2]
[391751177,1760773940693,1949.14083182,0.00024142,2]
[391751178,1760774061301,-374.21803242,0.00024173,2]
[391751179,1760774062645,-293.10784962,0.00024173,2]
[391751180,1760774141547,500.3,0.00034122,120]
[391751181,1760774144859,175.154,0.00024114,2]
[391751182,1760774150584,379.0,0.0002396,2]
[391751183,1760774162293,168.0,0.00024223,2]
[391751184,1760774282995,300.0,0.00024272,2]
[391751185,1760774331580,-182.45903545,0.00024273,2]
[391751186,1760774331619,-4635.0919291,0.00024273,2]
[391751187,1760774334423,-364.9080709,0.00024273,2]
[391751188,1760774334459,-500.0,0.00024442,2]
[391751189,1760774334496,-500.0,0.00024442,2]
[391751190,1760774334530,-500.0,0.00024446,2]
[391751191,1760774334567,-500.0,0.00024446,2]
[391751192,1760774334600,-468.26418992,0.00024447,2]
[391751193,1760774334632,-1200.0,0.00024447,2]
[391751194,1760774334666,-733.66547836,0.00024448,2]
[391751195,1760774347285,222.6968366,0.00023651,2]
[391751196,1760774414778,797.4080655,0.00023444,2]
[391751197,1760774530223,1998.5,0.00023444,2]
[391751198,1760774603832,801.0,0.00023597,2]
[391751199,1760774609179,801.0,0.00023929,2]
[391751200,1760774613676,338.09466768,0.00024298,2]
[391751201,1760774627294,168.0,0.00024289,2]
[391751202,1760774725197,823.77908852,0.00024324,2]
[391751203,1760774741162,1000.0,0.00024,2]
[391751204,1760774741508,1003.380388,0.000235,2]
[391751205,1760774862908,160.0,0.000243,7]
[391751206,1760774873272,160.0,0.000243,7]
[391751207,1760774878383,-168.0,0.00024324,2]
[391751208,1760774878421,-336.0,0.00024413,2]
[391751209,1760774878457,-168.0,0.00024416,2]
[391751210,1760774878492,-500.0,0.00024436,2]
[391751211,1760774878525,-500.0,0.00024436,2]
[391751212,1760774878561,-500.0,0.00024437,2]
[391751213,1760774878596,-500.0,0.00024437,2]
[391751214,1760774878632,-500.0,0.00024437,2]
[391751215,1760774878668,-300.0,0.00024443,2]
[391751216,1760774878703,-400.0,0.00024443,2]
[391751217,1760774878737,-1056.01,0.00024444,2]
[391751218,1760774887403,-300.0,0.00024443,2]
[391751219,1760774887463,-143.99,0.00024444,2]
[391751220,1760774895501,-5000.0,0.000242,2]
[391751221,1760774906370,-2338.21818654,0.00024444,2]
[391751222,1760774906401,-10000.01,0.00024444,2]
[391751223,1760774908487,-10000.01,0.00024444,2]
[391751224,1760774908635,-10000.01,0.00024444,2]
[391751225,1760774908815,-10000.01,0.00024444,2]
[391751226,1760774911471,-2338.26818654,0.00024444,2]
[391751227,1760774911504,-5323.47362692,0.00024444,2]
[391751228,1760774973113,-559.79635245,0.0002444,2]
[391751229,1760774973155,-3880.4172951,0.00024444,2]
[391751230,1760774973208,-1119.5827049,0.00024444,2]
[391751231,1760774977898,-500.0,0.00024445,2]
[391751232,1760774977934,-500.0,0.00024446,2]
[391751233,1760774977971,-500.0,0.00024446,2]
[391751234,1760774978008,-500.0,0.00024446,2]
[391751235,1760774978047,-300.0,0.00024449,2]
[391751236,1760774978095,-700.41799087,0.0002445,2]
[391751237,1760774978274,-3999.17401826,0.0002445,2]
[391751238,1760774982739,-150.0,0.00019798,2]
[391751239,1760774982780,-150.0,0.00020741,2]
[391751240,1760774982820,-150.0,0.00021684,2]
[391751241,1760774982896,150.0,0.00022627,2]
[391751242,1760774983290,150.0,0.0002357,2]
[391751243,1760774990619,-241.48477101,0.00024206,2]
[391751244,1760774993853,-205.36170744,0.00024206,2]
[391751245,1760774999235,-4553.15352155,0.00024206,2]
[391751246,1760775007130,893.7029569,0.00024206,2]
[391751247,1760775007195,4106.2970431,0.00024206,2]
[391751248,1760775014202,-803.6635522,0.0002444,2]
[391751250,1760775029411,-300.0,0.0002445,2]
[391751251,1760775029452,-972.0,0.0002445,2]
[391751252,1760775029571,5000.0,0.0002444,2]
[391751293,1760775032853,168.0,0.00024275,2]
[391751297,1760775032882,-890.02271864,0.00024451,2]
[391751318,1760775038468,-2622.27390648,0.00024451,2]
[391751321,1760775038479,-113.71139551,0.00024453,7]
[391751323,1760775038491,-77.40860449,0.00024453,7]
[391751325,1760775038501,-168.07636764,0.00024454,2]
[391751327,1760775038511,-603.19405122,0.00024455,2]
[391751329,1760775038522,-379.0,0.00024488,2]
[391751331,1760775038532,-1000.0,0.000245,2]
[391751333,1760775038542,-183.0,0.000245,2]
[391751335,1760775038552,-200.0,0.0002451,2]
[391751337,1760775038561,-500.0,0.00024511,2]
[391751339,1760775038570,-651.15960535,0.00024511,2]
[391751341,1760775038581,-500.0,0.00024511,2]
[391751343,1760775038591,-392.34168407,0.00024511,2]
[391751345,1760775038600,-241.26834262,0.00024511,2]
[391751347,1760775038610,-82.07616258,0.00024512,2]
[391751349,1760775038621,-67.92383742,0.00024512,2]
[391751351,1760775038630,-823.77908852,0.00024535,2]
[391751353,1760775038640,-1368.95,0.0002454,3]
[391751355,1760775038650,-684.47,0.0002454,3]
[391751357,1760775038660,-342.24,0.0002454,3]
[391751359,1760775038670,-171.12,0.0002454,3]
[391751361,1760775038679,-513.38,0.0002454,3]
[391751363,1760775038690,-500.0,0.00024542,2]
[391751365,1760775038700,-603.19405121,0.00024549,2]
[391751367,1760775038713,-367.6232156,0.00024549,2]
[391751368,1760775038723,-8040.01202408,0.0002455,2]
[391751415,1760775040994,-3e-08,0.00024511,2]
[391751575,1760775046693,168.0,0.0002362,2]
[391751583,1760775051907,5000.0,0.0002415,2]
[391751584,1760775053406,150.0,0.00020033,2]
[391751585,1760775053809,150.0,0.00020987,2]
[391751586,1760775054217,150.0,0.00021941,2]
[391751587,1760775054698,150.0,0.00022895,2]
[391751588,1760775055192,150.0,0.00023849,2]
[391751589,1760775074534,5000.0,0.00024386,2]
[391751590,1760775097545,5000.0,0.00024386,2]
[391751591,1760775119987,5000.0,0.0002415,2]
[391751592,1760775121390,150.0,0.00019797,2]
[391751593,1760775121873,150.0,0.00020739,2]
[391751594,1760775122283,150.0,0.00021682,2]
[391751595,1760775122774,150.0,0.00022625,2]
[391751596,1760775123199,150.0,0.00023568,2]
[391751597,1760775199344,-168.0,0.00024386,2]
[391751598,1760775199382,-3133.06133942,0.0002445,2]
[391751599,1760775199421,-361.91643075,0.0002445,2]
[391751600,1760775204002,489.82180842,0.0002445,2]
[391751601,1760775231976,-1791.0555633,0.00024419,2]
[391751602,1760775232134,-3582.1111266,0.00024419,2]
[391751603,1760775232333,-2835.7877468,0.00024419,2]
[391751604,1760775283367,-257.33625092,0.00024449,2]
[391751605,1760775283405,-500.0,0.00024449,2]
[391751606,1760775283445,-500.0,0.00024449,2]
[391751607,1760775283479,-500.0,0.00024449,2]
[391751608,1760775283515,-500.0,0.00024449,2]
[391751609,1760775283555,-500.0,0.00024449,2]
[391751610,1760775283591,-315.48945951,0.00024449,2]
[391751611,1760775283629,-332.94047856,0.00024449,2]
[391751612,1760775283673,-500.0,0.00024449,2]
[391751613,1760775283708,-500.0,0.00024449,2]
[391751614,1760775283746,-500.0,0.00024449,2]
[391751615,1760775283969,-500.0,0.00024449,2]
[391751616,1760775284008,-500.0,0.00024449,2]
[391751617,1760775284053,-500.0,0.00024449,2]
[391751618,1760775284096,-500.0,0.00024449,2]
[391751619,1760775284137,-500.0,0.00024449,2]
[391751620,1760775284180,-500.0,0.00024449,2]
[391751621,1760775284219,-500.0,0.00024449,2]
[391751622,1760775284258,-500.0,0.00024449,2]
[391751623,1760775284299,-500.0,0.00024449,2]
[391751624,1760775284336,-500.0,0.00024449,2]
[391751625,1760775284652,-500.0,0.00024449,2]
[391751626,1760775284688,-478.69163852,0.00024449,2]
[391751627,1760775284723,-500.0,0.00024449,2]
[391751628,1760775298428,185.409302,0.0002356,2]
[391751629,1760775316477,-300.0,0.00024449,2]
[391751630,1760775367858,-300.0,0.00024449,2]
[391751631,1760775395942,1103.57,0.00024,30]
[391751632,1760775401123,-180.13537565,0.00024449,2]
[391751633,1760775401168,-497.63240428,0.00024449,2]
[391751634,1760775401209,-500.0,0.00024449,2]
[391751635,1760775425044,1000.0,0.00024,60]
[391751636,1760775431858,1000.0,0.00024,60]
[391751637,1760775438823,1000.0,0.00024,60]
[391751638,1760775452486,-2088.70755962,0.00024354,2]